Cogmind - Beta 10.1 @@@ ROGUE MODE // 2020.10.20 @ 19:10:35 Player: Demise Result: Destroyed by H-55 Commando with Gauss Rifle Performance ------------- Evolutions (3) 1500 Regions Visited (8) 1600 Robots Destroyed (169) 845 Value Destroyed (5362) 5362 Prototype IDs (29) 580 Alien Tech Used (0) 0 Bonus (-463) -463 TOTAL SCORE: 9424 Bonus ------- High Alert Combat Kills 581 Follower Combat Kills 42 Aligned with FarCom 300 Friendly Fire -1386 Cogmind --------- Core Integrity 0/700 Matter 237/300 Energy 303/325 System Corruption 9% Temperature Cool (0) Movement Core (600) Ox11 Location -7/Factory Parts ------- > --- POWER (1) -------- Antimatter Reactor > --- PROPULSION (3) --- (None) > --- UTILITY (7) ------ Improved Cooling System Medium Storage Unit Long-range Sensor Array > --- WEAPON (2) ------- Autogun Great Maul > --- INVENTORY (8) ---- Heavy Treads AWS/Gauss Peak State ------------ > --- POWER ------------ Antimatter Reactor > --- PROPULSION ------- Heavy Treads > --- UTILITY ---------- Improved Cooling System Improved Cooling System Improved Propulsion Shielding Damper Plating Dynamic Insulation System > --- WEAPON ----------- AWS/Gauss > --- INVENTORY -------- Antimatter Reactor Heavy Treads Improved Propulsion Shielding [Rating: 70] Favorites ----------- Power Light Nuclear Core Engine Ion Engine Power Core Light Nuclear Core Reactor Antimatter Reactor Propulsion Light Treads Treads Light Treads Leg Carbon-fiber Leg Wheel Armored Wheel Hover Unit Gravmag System Flight Unit Improved Flight Unit Utility High-capacity Storage Unit Device Improved Heat Sink Storage High-capacity Storage Unit Processor Advanced Targeting Computer Protection Medium Reactive Plating Weapon Enhanced Autogun Energy Gun EM Pulse Gun Energy Cannon Guided Plasma Cannon Ballistic Gun Enhanced Autogun Launcher Heavy Missile Launcher Special Weapon Mining Laser Impact Weapon Power Maul Build | -11 -10 -10 -10 -9 -8 -7 -7 -7 ------- Run | Scr Mat Min Exi Min Mat Fac Was Fac Slots Evolved 6 | . . . . . 4 2 . . Power . | . . . . . . . . . Propulsion 1 | . . . . . . 1 . . Utility 5 | . . . . . 4 1 . . Weapon . | . . . . . . . . . Parts Attached 166 | 3 20 6 15 1 57 17 29 18 Power 22 | . 1 3 1 . 10 1 5 1 Engine 8 | . 1 2 1 . 4 . . . Core 8 | . . 1 . . 6 1 . . Reactor 6 | . . . . . . . 5 1 Propulsion 38 | 2 6 1 3 . 17 5 3 1 Treads 23 | 2 4 . . . 12 1 3 1 Leg 4 | . . . . . 1 3 . . Wheel 6 | . 2 1 3 . . . . . Hover 1 | . . . . . . 1 . . Flight 4 | . . . . . 4 . . . Utility 56 | 1 3 . 6 . 14 5 18 9 Device 23 | . . . . . 9 1 9 4 Storage 10 | 1 3 . 4 . . 1 . 1 Processor 8 | . . . 2 . 3 2 1 . Hackware . | . . . . . . . . . Protection 15 | . . . . . 2 1 8 4 Artifact . | . . . . . . . . . Weapon 50 | . 10 2 5 1 16 6 3 7 Energy Gun 3 | . . . . . . . . 3 Energy Cannon 10 | . 1 . 2 1 5 . . 1 Ballistic Gun 31 | . 8 2 3 . 9 5 2 2 Ballistic Cannon . | . . . . . . . . . Launcher 2 | . . . . . 1 . 1 . Special Weapon 1 | . 1 . . . . . . . Impact Weapon 3 | . . . . . 1 1 . 1 Slashing Weapon . | . . . . . . . . . Piercing Weapon . | . . . . . . . . . Special Melee Weapon . | . . . . . . . . . Unidentified Prototypes 6 | . . . . . 5 . . 1 Parts Lost 43 | . 2 2 3 . 7 5 14 10 Power 6 | . . 1 1 . 1 . 2 1 Propulsion 11 | . . 1 1 . 1 3 3 2 Utility 14 | . . . . . 2 . 9 3 Weapon 12 | . 2 . 1 . 3 2 . 4 Highest Loss Streak 10 | . 1 2 3 . 3 3 6 10 Average Slot Usage (%) 89 | . 99 95 93 85 95 99 55 67 Engine 3 | . 14 5 3 14 1 . . . Core 4 | . . 4 10 . 6 7 . . Reactor 1 | . . . . . . . 4 6 Treads 11 | . 23 . . . 15 19 5 12 Leg 1 | . . . . . 1 2 4 . Wheel 8 | . 4 27 28 28 1 . . . Device 9 | . . . . . 18 15 7 15 Storage 18 | . 28 28 21 28 18 15 7 5 Processor 5 | . . . 5 . 8 12 6 . Protection 5 | . . . . . 6 8 8 14 Energy Gun 1 | . 10 . . . . . . 2 Energy Cannon 1 | . 1 5 2 4 1 . . 2 Ballistic Gun 13 | . 15 22 19 9 13 14 6 4 Naked Turns 8 | . . . . . . . 8 . Heaviest Build 138 | 16 58 60 79 79 100 120 138 88 Greatest Support 90 | 40 40 24 24 24 42 60 70 90 Greatest Overweight (x) 10 | . 4 4 3 3 7 9 8 10 Average Overweight (x) 1 | . . 2 2 2 2 1 1 . Largest Inventory Capacity 20 | 8 18 18 20 20 20 20 20 8 Average Capacity 16 | 7 16 18 16 20 20 20 12 7 Most Carried 20 | 8 18 18 20 20 20 20 20 8 Average Carried 15 | 7 13 17 12 19 19 19 10 5 Final Capacity 20 | 8 18 18 20 20 20 20 4 8 Final Carried 20 | 8 18 18 20 20 20 18 4 4 Class Distribution -------------------- 47% | Hauler-Mutant 26% | Mutant 25% | Scavenger-Mutant Dominant Class ---------------- Mutant | -10/Materials Mutant | -10/Mines Hauler-Mutant | -10/Exiles Hauler-Mutant | -9/Mines Hauler-Mutant | -8/Materials Scavenger-Mutant | -7/Factory Scavenger-Mutant | -7/Waste Scavenger-Mutant | -7/Factory Resources | -11 -10 -10 -10 -9 -8 -7 -7 -7 ----------- Run | Scr Mat Min Exi Min Mat Fac Was Fac Matter Collected 4178 | 306 409 169 219 10 1506 860 488 211 Remotely . | . . . . . . . . . Salvage Created 8579 | 210 567 197 24 290 2790 1182 1960 1359 Parts 403 | 20 38 18 . 6 146 66 53 56 Haulers Intercepted 9 | . 2 . . . 5 1 . 1 Recyclers Shooed 2 | . 1 . . . 1 . . . Parts Field Recycled . | . . . . . . . . . Retrieved Matter . | . . . . . . . . . Parts Self-Destructed . | . . . . . . . . . Prevented . | . . . . . . . . . Kills | -11 -10 -10 -10 -9 -8 -7 -7 -7 ------- Run | Scr Mat Min Exi Min Mat Fac Was Fac Combat Hostiles Destroyed 126 | . 8 5 2 5 50 23 6 27 Melee 2 | . . . . . . . 2 . Guns 105 | . 8 4 1 5 40 23 4 20 Cannons 14 | . . 1 1 . 6 . . 6 AOE 3 | . . . . . 3 . . . Classes Destroyed 18 | 3 5 3 . 1 4 1 1 . Worker 9 | 2 1 1 . . 1 2 . 2 Builder 2 | . . . . . 1 . . 1 Tunneler 9 | 5 1 3 . . . . . . Hauler 9 | . 2 . . . 5 1 . 1 Recycler 7 | 1 1 . . . 5 . . . Operator 1 | . 1 . . . . . . . Watcher 4 | . 1 . . . 1 2 . . Swarmer 25 | . 3 . . 2 8 5 . 7 Grunt 62 | . 5 . . 2 28 11 . 16 Brawler 1 | . . . . . 1 . . . Duelist 5 | . . . . 1 3 1 . . Protector 2 | . . . . . 2 . . . Sentry 10 | . . 2 . . 6 . . 2 Demolisher 2 | . . 2 . . . . . . Hunter 4 | . . . . . 2 1 . 1 Programmer 6 | . . . . . . 5 . 1 Compactor 6 | . . . . . . . 6 . Assembled 4 | . . 1 3 . . . . . Best Kill Streak 15 | 4 3 4 2 3 15 5 2 8 Combat Bots Only 12 | . 2 2 2 3 12 4 2 6 Max Kills in Single Turn 3 | 1 1 1 1 1 3 2 1 1 Gunslinging . | . . . . . . . . . Exploded 2 | . . . . . 2 . . . Melee 1 | . . . . . . . 1 . Uniques/NPCs Destroyed 2 | . . . 1 1 . . . . 8R-AWN (-10/Exiles) YI-UF0 (-9/Mines) Combat | -11 -10 -10 -10 -9 -8 -7 -7 -7 -------- Run | Scr Mat Min Exi Min Mat Fac Was Fac Damage Taken 11672 | . 294 531 592 55 2102 1358 3831 2909 Core 1164 | . 35 56 74 . 284 232 219 264 Absorbed by Shields 121 | . . . . . . . 121 . Core Remaining (%) 60 | 100 . . . 34 48 . . . Volleys Fired 439 | 15 41 18 7 7 178 82 26 65 Largest 2 | 2 2 2 2 1 2 2 2 2 Hottest 149 | 80 100 80 120 120 120 56 56 149 Shots Fired 886 | 30 74 34 22 26 334 161 48 157 Gun 798 | 30 73 31 17 19 304 161 45 118 Cannon 81 | . . 3 5 7 27 . . 39 Launcher 6 | . . . . . 3 . 3 . Special 1 | . 1 . . . . . . . Kinetic 708 | . 54 31 17 19 304 161 45 77 Thermal 105 | 15 7 3 5 7 27 . . 41 Explosive 6 | . . . . . 3 . 3 . Electromagnetic 67 | 15 13 . . . . . . 39 Robot Hit Streak 27 | 8 13 13 9 13 20 16 15 27 Robot Miss Streak 5 | 3 4 4 1 1 4 5 5 3 Penetration Max . | . . . . . . . . . Secondary Targets 11 | . 1 . 1 . 6 3 . . Max Gunslinging Chain 1 | . 1 . 1 . 1 1 . . Autonomous 100 | . . . 13 19 . . 12 56 Shots Hit Robots 661 | 18 48 27 15 17 232 137 45 122 Core Hits 427 | 8 28 13 8 8 109 118 81 54 Critical Hits 5 | . . 1 . 1 2 . . 1 Critical Kills 2 | . . . . 1 . . . 1 Critical Parts Destroyed 3 | . . 1 . . 2 . . . Melee Attacks 10 | . . . . . 5 4 . 1 Impact 10 | . . . . . 5 4 . 1 Slashing . | . . . . . . . . . Piercing . | . . . . . . . . . Sneak Attacks . | . . . . . . . . . Combat Hostiles . | . . . . . . . . . Follow-up Attacks . | . . . . . . . . . Damage Inflicted 15922 | 287 572 370 515 748 4910 2590 2326 3604 Guns 12186 | 250 572 317 369 497 3556 2589 1476 2560 Cannons 1855 | . . 53 146 251 698 . . 707 Explosions 1284 | 37 . . . . 614 . 428 205 Melee 81 | . . . . . 42 . . 39 Ramming 516 | . . . . . . 1 422 93 Kinetic 11115 | . 431 317 369 497 3556 2589 1476 1880 Thermal 2156 | 112 11 53 146 251 698 . . 885 Explosive 1042 | . . . . . 614 . 428 . Electromagnetic 1012 | 175 130 . . . . . . 707 Impact 81 | . . . . . 42 . . 39 Slashing . | . . . . . . . . . Piercing . | . . . . . . . . . Highest Corruption 9 | . . . . . . 2 8 9 Average Corruption 5 | . . . . . . 1 7 8 Corruption Purged . | . . . . . . . . . Effects 76 | . . . . . . 5 24 47 Message Errors 9 | . . . . . . 2 3 4 Matter Fused 13 | . . . . . . . 3 10 Heat Flow Errors 7 | . . . . . . . 4 3 Energy Discharges 18 | . . . . . . 2 8 8 Parts Rejected 1 | . . . . . . . . 1 Data Loss (minor) 15 | . . . . . . . 4 11 Misfires 1 | . . . . . . . . 1 Targeting Errors 10 | . . . . . . . 2 8 Weapon Failures 2 | . . . . . . 1 . 1 Overload Shots . | . . . . . . . . . Overflow Damage 53 | . . . . 12 13 . . 28 Projectiles 21 | . . . . 12 6 . . 3 Explosions 17 | . . . . . . . . 17 Melee 15 | . . . . . 7 . . 8 Knockbacks 1 | . . . . . 1 . . . Impact 1 | . . . . . 1 . . . Kinetic . | . . . . . . . . . Secondary . | . . . . . . . . . Self-Inflicted Damage 125 | . . . . . 84 . 41 . Shots 4 | . . . . . 3 . 1 . Rammed 115 | . . . . . . 1 102 12 Targets Rammed 116 | . . . . . . 1 102 13 Kicked . | . . . . . . . . . Crushed 1 | . . . . . . . . 1 Highest Temperature 465 | 144 48 72 240 320 465 38 261 449 Average Temperature 89 | 55 17 42 104 120 98 20 57 122 Received Heat Transfer 2202 | . 93 27 . 12 810 405 . 855 Effects 7 | . . . . . 4 . . 3 Shutdowns 2 | . . . . . 1 . . 1 Energy Bleed 2 | . . . . . 1 . . 1 Interference 1 | . . . . . 1 . . . Short Circuit 1 | . . . . . . . . 1 Damage (major) 1 | . . . . . 1 . . . Siege Activations . | . . . . . . . . . Robots Corrupted 1 | . . . . . . . . 1 Combat Hostiles 1 | . . . . . . . . 1 Parts Fried 5 | . . . . . 1 . . 4 Impact Corruptions 2 | . . . . . 1 . . 1 Robots Melted 1 | . . . . . 1 . . . Combat Hostiles 1 | . . . . . 1 . . . Parts Melted 4 | . . . . . 2 . . 2 Heat Transferred 4293 | 225 25 111 320 560 1539 . . 1513 Parts Sabotaged . | . . . . . . . . . Parts Stolen . | . . . . . . . . . Parts Stripped . | . . . . . . . . . Power Chain Reactions 3 | 1 . . . . . . . 2 Missiles Intercepted . | . . . . . . . . . Alert | -11 -10 -10 -10 -9 -8 -7 -7 -7 ------- Run | Scr Mat Min Exi Min Mat Fac Was Fac Peak Influence 943 | 40 156 101 . 166 943 519 179 639 Initial 420 | . 26 1 . . . 420 161 1 Average 242 | 24 69 22 . 89 459 341 93 198 Maximum Alert Level 3 | . . . . . 3 2 . 2 Low Security (%) 55 | 100 100 100 . 100 35 . 100 59 Level 1 21 | . . . . . 12 67 . 22 Level 2 13 | . . . . . 14 32 . 18 Level 3 9 | . . . . . 38 . . . Level 4 . | . . . . . . . . . Level 5 . | . . . . . . . . . High Security . | . . . . . . . . . Max Security . | . . . . . . . . . Squads Dispatched 28 | . 2 . . . 7 10 . 9 Investigation 10 | . 1 . . . 2 3 . 4 Extermination 4 | . . . . . . 3 . 1 Reinforcement 12 | . 1 . . . 3 4 . 4 Assault 2 | . . . . . 2 . . . Garrison . | . . . . . . . . . Intercept . | . . . . . . . . . Construction Impeded 3 | . . . . . . 1 . 2 Haulers Reinforced 1 | . . . . . . 1 . . Stealth | -11 -10 -10 -10 -9 -8 -7 -7 -7 --------- Run | Scr Mat Min Exi Min Mat Fac Was Fac Distress Signals 6 | . . . . . 4 . . 2 Communications Jammed . | . . . . . . . . . Distress Signals . | . . . . . . . . . Times Spotted 208 | . 17 5 7 5 81 39 6 48 Peak Tracking Total 8 | . 3 2 8 3 7 4 4 7 Tactical Retreats 16 | . 2 . . . 6 4 . 4 Traps | -11 -10 -10 -10 -9 -8 -7 -7 -7 ------- Run | Scr Mat Min Exi Min Mat Fac Was Fac Traps Triggered 9 | . 4 . . . 1 3 . 1 Indirectly . | . . . . . . . . . Trap Hack Attempts . | . . . . . . . . . Triggered . | . . . . . . . . . Disarmed . | . . . . . . . . . Reprogrammed . | . . . . . . . . . Reused 3 | . . . 3 . . . . . Traps Extracted . | . . . . . . . . . Installed 3 | . . . 3 . . . . . Triggered 1 | . . . . . . . . 1 Machines | -11 -10 -10 -10 -9 -8 -7 -7 -7 ---------- Run | Scr Mat Min Exi Min Mat Fac Was Fac Machines Disabled 9 | . . . 1 . 3 1 . 4 Max in Single Turn 1 | . . . 1 . 1 1 . 1 Garrison Access 1 | . . . . . 1 . . . Machines Sabotaged . | . . . . . . . . . Garrisons Compromised . | . . . . . . . . . Overloaded Fab Kills . | . . . . . . . . . Fab Network Shutdowns . | . . . . . . . . . Hacking | -11 -10 -10 -10 -9 -8 -7 -7 -7 --------- Run | Scr Mat Min Exi Min Mat Fac Was Fac Machines Accessed 34 | . 9 . 2 . 9 7 . 7 Terminals 17 | . 6 . . . 4 4 . 3 Fabricators 1 | . . . . . . 1 . . Repair Stations 5 | . 1 . . . 2 . . 2 Recycling Units 5 | . 2 . . . 1 . . 2 Scanalyzers 2 | . . . . . 1 1 . . Garrison Access 2 | . . . . . 1 1 . . Total Hacks 94 | . 23 . 2 . 30 20 . 19 Successful 54 | . 14 . 2 . 23 9 . 6 Failed 39 | . 8 . . . 7 11 . 13 Catastrophic 3 | . . . . . . 1 . 2 Database Lockouts 1 | . 1 . . . . . . . Manual 40 | . 17 . 1 . 6 7 . 9 Terminals 47 | . 17 . . . 11 10 . 9 Fabricators 3 | . . . . . . 3 . . Repair Stations 15 | . 3 . . . 7 . . 5 Recycling Units 11 | . 3 . . . 3 . . 5 Scanalyzers 12 | . . . . . 7 5 . . Garrison Access 4 | . . . . . 2 2 . . Terminal Hacks 14 | . 6 . 2 . 3 2 . 1 Record 2 | . . . 1 . . 1 . . Robot Analysis 2 | . 1 . . . 1 . . . Branch Access Points 2 | . . . . . 1 . . 1 Locate Traps 4 | . 3 . . . . 1 . . Recall Investigation 1 | . . . . . 1 . . . Hauler Manifests 1 | . 1 . . . . . . . Zone Layout 1 | . 1 . . . . . . . EX-Prototype ID Bank 1 | . . . 1 . . . . . Fabricator Hacks 3 | . . . . . . 3 . . Network Status 1 | . . . . . . 1 . . Load Schematic 1 | . . . . . . 1 . . Build 1 | . . . . . . 1 . . Repair Station Hacks 12 | . 3 . . . 7 . . 2 Scan Component 6 | . 2 . . . 3 . . 1 Repair 5 | . 1 . . . 3 . . 1 Refit 1 | . . . . . 1 . . . Recycling Unit Hacks 4 | . 1 . . . 2 . . 1 Report Inventory 3 | . 1 . . . 1 . . 1 Retrieve Components 1 | . . . . . 1 . . . Scanalyzer 11 | . . . . . 7 4 . . Insert Component 6 | . . . . . 4 2 . . Analyze 5 | . . . . . 3 2 . . Garrison Access Hacks 1 | . . . . . 1 . . . Seal Access 1 | . . . . . 1 . . . Unauthorized Hacks 9 | . 4 . . . 3 . . 2 Terminals 8 | . 3 . . . 3 . . 2 Botnet 7 | . 3 . . . 2 . . 2 Operators 1 | . . . . . 1 . . . Fabricators . | . . . . . . . . . Repair Stations . | . . . . . . . . . Recycling Units 1 | . 1 . . . . . . . Monitor 1 | . 1 . . . . . . . Scanalyzers . | . . . . . . . . . Garrison Access . | . . . . . . . . . Data Cores Recovered . | . . . . . . . . . Used . | . . . . . . . . . Hacking Detections 30 | . 8 . . . 8 7 . 7 Full Trace Events 8 | . 1 . . . 2 2 . 3 Feedback Events . | . . . . . . . . . Feedback Blocked . | . . . . . . . . . Robot Schematics Acquired . | . . . . . . . . . Robots Built . | . . . . . . . . . Matter . | . . . . . . . . . Time . | . . . . . . . . . Total Robot Build Rating . | . . . . . . . . . Part Schematics Acquired 5 | . . . . . 3 2 . . Parts Built 1 | . . . . . . 1 . . Matter 102 | . . . . . . 102 . . Time 51 | . . . . . . 51 . . Total Part Build Rating 1 | . . . . . . 1 . . Parts Repaired 5 | . 1 . . . 3 . . 1 Time 127 | . 26 . . . 70 . . 31 Parts Recycled . | . . . . . . . . . Recycled Matter . | . . . . . . . . . Retrieved Matter . | . . . . . . . . . Retrieved Components 2 | . . . . . 2 . . . Parts Scanalyzed 5 | . . . . . 3 2 . . Part Schematics Acquired 5 | . . . . . 3 2 . . Parts Damaged 1 | . . . . . . 1 . . Bothacking | -11 -10 -10 -10 -9 -8 -7 -7 -7 ------------ Run | Scr Mat Min Exi Min Mat Fac Was Fac Used RIF Installer . | . . . . . . . . . Robots Hacked . | . . . . . . . . . Non-combat . | . . . . . . . . . Combat . | . . . . . . . . . Robot Hacks Applied . | . . . . . . . . . Relay Couplers Released . | . . . . . . . . . Robots Rewired . | . . . . . . . . . Allies Hacked . | . . . . . . . . . Hacks Repelled . | . . . . . . . . . Allies | -11 -10 -10 -10 -9 -8 -7 -7 -7 -------- Run | Scr Mat Min Exi Min Mat Fac Was Fac Total Allies 6 | . . 2 . 4 . . . . Largest Group 4 | . . 2 2 4 1 . . . Highest-Rated Group 71 | . . 41 41 71 16 . . . Highest-Rated Ally 31 | . . 31 31 31 16 . . . Total Orders 2 | . . . . 2 . . . . STAY 1 | . . . . 1 . . . . FOLLOW 1 | . . . . 1 . . . . Ally Attacks 22 | . . . 15 2 5 . . . Total Damage 893 | . . . 794 22 77 . . . Kills 7 | . . . 5 1 1 . . . Allies Corrupted . | . . . . . . . . . Allies Melted . | . . . . . . . . . Turrets Deployed 2 | . . . 2 . . . . . Intel | -11 -10 -10 -10 -9 -8 -7 -7 -7 ------- Run | Scr Mat Min Exi Min Mat Fac Was Fac Robot Analysis Total 2 | . 1 . . . 1 . . . Derelict Logs Recovered 3 | . . 2 . 1 . . . . Drone Launches . | . . . . . . . . . Drone Recoveries . | . . . . . . . . . Exploration | -11 -10 -10 -10 -9 -8 -7 -7 -7 ------------- Run | Scr Mat Min Exi Min Mat Fac Was Fac Turns Passed 10189 | 160 1216 815 1277 668 2171 2055 652 1175 Spaces Moved 5418 | 58 661 658 1079 527 816 911 184 524 Core 7 | . . . . . . . 6 1 Treads 2658 | 38 514 . . . 608 811 164 523 Legs 229 | 20 . . . . 96 99 14 . Wheels 2523 | . 147 658 1079 527 112 . . . Hover 1 | . . . . . . 1 . . Flight . | . . . . . . . . . Fastest Speed 50 | 120 110 105 90 110 120 180 50 160 Average Speed 148 | 146 150 107 109 119 193 181 183 167 Slowest Speed 620 | 160 180 130 120 120 270 620 450 550 Overloaded Moves . | . . . . . . . . . Propulsion Burnouts . | . . . . . . . . . Robots Hopped . | . . . . . . . . . Cave-ins Triggered . | . . . . . . . . . Exploration Rate (%) 57 | 3 85 95 68 98 55 20 79 14 Regions Visited 8 Branch Regions 3 Pre-discovered Areas 5 | . . 1 1 3 . . . . Known Exits Taken 1 | . . . . . 1 . . . Unknown Exits Taken 5 | 1 1 1 1 1 . . . . Scrap Searched 3 | . . 2 . 1 . . . . Spaces Dug 24 | . 1 . . . 4 2 17 . Terrain Destroyed 127 | 2 1 . 5 12 32 2 36 37 Melee 6 | . . . . . 4 2 . . Projectile 55 | . 1 . 5 12 2 . 3 32 AOE 66 | 2 . . . . 26 . 33 5 Terrain Rammed . | . . . . . . . . . Walls Destroyed . | . . . . . . . . . Machines Disabled . | . . . . . . . . . Actions | -11 -10 -10 -10 -9 -8 -7 -7 -7 --------- Run | Scr Mat Min Exi Min Mat Fac Was Fac Total 6869 | 108 817 733 1185 557 1224 1173 360 712 Wait 434 | 21 56 34 . 16 96 131 3 77 Move 5411 | 57 660 657 1078 526 815 911 183 524 Hop . | . . . . . . . . . Pick Up 120 | 7 20 8 37 3 22 12 7 4 Fast Attach 76 | 1 9 4 3 . 29 6 14 10 Attach 40 | 2 2 . 9 1 9 5 6 6 Detach 25 | . 2 . 10 . 6 1 3 3 Swap 50 | . 9 2 3 . 19 6 9 2 Drop 145 | 5 18 10 35 4 45 14 7 7 Fire 439 | 15 41 18 7 7 178 82 26 65 Melee 10 | . . . . . 5 4 . 1 Ram 5 | . . . . . . . 5 . Kick . | . . . . . . . . . Crush 111 | . . . . . . 1 97 13 Escape Stasis . | . . . . . . . . . Rewire . | . . . . . . . . . Trap 3 | . . . 3 . . . . . Miscellaneous . | . . . . . . . . . Route ------- -11/Scrapyard -10/Materials (discovered 5 exits: [*Mat x3] / [*Min x2]) -10/Mines (discovered 3 exits: [*Mat x2] / *Exi) -10/Exiles -9/Mines (discovered 2 exits: *Mat x2) -8/Materials (discovered 2 exits: *Fac x2) -7/Factory -7/Waste -7/Factory (discovered 4 exits: Sto x2 / Low x2) History --------- Turn | Location | Event 1 | -11/Scrapyard | Discovered new exit (range 2) 161 | -11/Scrapyard | Entered Materials 316 | -10/Materials | Build established: Mutant 363 | -10/Materials | Discovered new exit (range 10) 506 | -10/Materials | Discovered new exit (range 12) 575 | -10/Materials | Discovered new exit (range 16) 764 | -10/Materials | Discovered new exit (range 14) 913 | -10/Materials | Repaired Lgt. Treads? 1084 | -10/Materials | Central database locked down 1097 | -10/Materials | Discovered new exit (range 10) 1377 | -10/Materials | Entered Mines 1515 | -10/Mines | Discovered new exit (range 13) 1548 | -10/Mines | Assembled infested the area 1549 | -10/Mines | Learned 8 Materials zone layouts 1748 | -10/Mines | Discovered new exit (range 3) 1775 | -10/Mines | Deemed a non-threat by the Exiles lab entrance 1776 | -10/Mines | Discovered new exit (range 5) 2067 | -10/Mines | Found a hidden stash of uninstalled traps 2079 | -10/Mines | Learned location of Storage (-7) 2192 | -10/Mines | Entered Exiles 2192 | -10/Exiles | Accompanied by 2 allies 2206 | -10/Exiles | Discovered new exit (range 15) 2222 | -10/Exiles | Led the pair of lost Derelicts to a safe place 2233 | -10/Exiles | Met 8R-AWN 2250 | -10/Exiles | Met EX-HEX 2344 | -10/Exiles | Met EX-DEC 2367 | -10/Exiles | Learned location of Zion (-7) 2491 | -10/Exiles | Met EX-BIN 2505 | -10/Exiles | Aligned with FarCom system 2506 | -10/Exiles | Given EX-Vault access code 2533 | -10/Exiles | Opened EX-Vault 2561 | -10/Exiles | Warned to stay clear of 0b10 Research branches 2597 | -10/Exiles | Build established: Hauler-Mutant 2792 | -10/Exiles | Found Gui. Plasma Cannon 2795 | -10/Exiles | Found Deploy-a-Sentry 2797 | -10/Exiles | Found Deploy-a-Sentry 2799 | -10/Exiles | Found Deploy-a-Sentry 2805 | -10/Exiles | Found AWS/Gauss 3094 | -10/Exiles | Attacked by the Exiles 3100 | -10/Exiles | DAS Turret deployed 3106 | -10/Exiles | Core integrity fell below 50% 3129 | -10/Exiles | DAS Turret deployed 3136 | -10/Exiles | Allies destroyed 8R-AWN 3155 | -10/Exiles | Lost 3 parts (1p1n1w) 3469 | -10/Exiles | Stole three prototypes: AWS/Gauss, Gui. Plasma Cannon, Deploy-a-Sentry 3469 | -10/Exiles | Entered Mines 3503 | -9/Mines | Discovered new exit (range 14) 3510 | -9/Mines | Assisted by bots powering up and referring to "LRC-V3" 3541 | -9/Mines | Escorted by a lone wolf Derelict 3763 | -9/Mines | Discovered new exit (range 10) 3774 | -9/Mines | Learned location of Recycling (-7) 3896 | -9/Mines | YI-UF0 nonchalantly dropped a Grenade Launcher on the ground 4011 | -9/Mines | Destroyed YI-UF0 4137 | -9/Mines | Entered Materials 4137 | -8/Materials | Accompanied by 1 ally 4137 | -8/Materials | Evolved 4 slots: Utility x4 4138 | -8/Materials | Identified exit to Factory 4249 | -8/Materials | Repaired Deuterium Engine 4680 | -8/Materials | Lost 3 parts (1u2w) 5049 | -8/Materials | Repaired Adv. Treads 5120 | -8/Materials | Repaired Lgt. Treads 5337 | -8/Materials | First assault squad dispatched 5504 | -8/Materials | Destroyed 12 combat bots 6157 | -8/Materials | Core integrity fell below 50% 6298 | -8/Materials | Discovered exit to Factory (range 3) 6308 | -8/Materials | Entered Factory 6308 | -7/Factory | Evolved 2 slots: Propulsion x1, Utility x1 6619 | -7/Factory | Build established: Scavenger-Mutant 7130 | -7/Factory | Build established: Hauler-Mutant 7632 | -7/Factory | Fabricated Hcp. Storage Unit (x1) 8059 | -7/Factory | Build established: Scavenger-Mutant 8117 | -7/Factory | Lost 3 parts (3n) 8363 | -7/Factory | Sucked down chute 8363 | -7/Factory | Entered Waste 8378 | -7/Waste | EMP discharged 8381 | -7/Waste | Spotted C-40 Crusher 8401 | -7/Waste | Crushed by Compactor (1 part destroyed, 2 dropped) 8404 | -7/Waste | Crushed by Compactor (1 part destroyed, 1 dropped) 8407 | -7/Waste | Destroyed C-40 Crusher 8413 | -7/Waste | Found Damper Plating 8461 | -7/Waste | Found Damper Plating 8477 | -7/Waste | Spotted C-40 Crusher 8478 | -7/Waste | EMP discharged 8501 | -7/Waste | Spotted C-40 Crusher 8565 | -7/Waste | Spotted C-40 Crusher 8565 | -7/Waste | Spotted C-40 Crusher 8578 | -7/Waste | EMP discharged 8606 | -7/Waste | Crushed by Compactor (0 parts destroyed, 1 dropped) 8618 | -7/Waste | Destroyed C-40 Crusher 8623 | -7/Waste | Crushed by Compactor (1 part destroyed) 8632 | -7/Waste | Crushed by Compactor (0 parts destroyed, 1 dropped) 8635 | -7/Waste | Crushed by Compactor (0 parts destroyed, 1 dropped) 8644 | -7/Waste | Crushed by Compactor (0 parts destroyed, 1 dropped) 8662 | -7/Waste | Destroyed C-40 Crusher 8671 | -7/Waste | Crushed by Compactor (1 part destroyed) 8678 | -7/Waste | EMP discharged 8692 | -7/Waste | Crushed by Compactor (0 parts destroyed, 1 dropped) 8704 | -7/Waste | Crushed by Compactor (1 part destroyed) 8728 | -7/Waste | Destroyed C-40 Crusher 8732 | -7/Waste | Found Damper Plating 8735 | -7/Waste | Lost 6 parts (1p1n4u) 8778 | -7/Waste | EMP discharged 8846 | -7/Waste | Crushed by Compactor (1 part destroyed) 8847 | -7/Waste | Core integrity fell below 50% 8852 | -7/Waste | Crushed by Compactor (1 part destroyed) 8855 | -7/Waste | Destroyed C-40 Crusher 8866 | -7/Waste | Destroyed C-40 Crusher 8870 | -7/Waste | Found Damper Plating 8878 | -7/Waste | EMP discharged 8883 | -7/Waste | Lost 4 parts (1p1n2u) 8978 | -7/Waste | EMP discharged 8995 | -7/Waste | Discovered new exit (range 11) 9015 | -7/Waste | Entered Factory 9657 | -7/Factory | Repaired Antimatter Reactor 10055 | -7/Factory | Identified exit to Storage 10055 | -7/Factory | Identified exit to Lower Caves 10138 | -7/Factory | Core integrity fell below 20% 10190 | -7/Factory | Destroyed by H-55 Commando with Gauss Rifle Last Messages --------------- 10172_ U-05 Engineer lays Concrete. 10172_ G-47 Trooper destroyed. 10172_ Penetrated by Slug. 10172_ K-01 Serf collects debris. 10173_ U-05 Engineer lays Concrete. 10174_ G-47 Trooper destroyed. 10175_ Gatling Laser destroyed. 10175_ K-01 Serf collects debris. 10178_ P-60 Hacker resets K-01 Serf, system corruption cleaned. 10178_ Acquired 47 matter. 10179_ K-01 Serf collects debris. 10181_ Penetrated by Slug. 10182_ Hvy. Treads destroyed. 10182_ K-01 Serf collects debris. 10184_ Penetrated by Slug. 10187_ System corrupted: Component data lost. 10187_ Penetrated by Slug. 10187_ K-01 Serf collects debris. 10188_ Acquired Autogun. 10190_ Penetrated by Slug. Map ----- +----------------------------------------------------+ | ?????????????????????????????? ???????# #?????# | | ?????????????????????????????#/#??????# % #?????# | | ????????????????????????????## ######## #?????# | | ????????????????????????????# /!! #?????# | | ????????????????????????????# /! #????## | | ????????????????????????????# !! #???? # | | ????????????????????????????# !! ! #??? # | | ?????????????????#####+###### !!! ""% ####### | | ?????????????? !!! """ % | | ?????????????? "%% | | ?????????????? %| | | ??????????????? % * | | ??????????????? % | | ????????????????##############+############+###### | | ???????????????????# uu = %%#?????# [= #? | | ???????????????????# %%% #?????# """" #? | | ???????????????????# [ p!#?????# """" #? | | ???????????????????# ! #?????# """" #? | | ???????????????????# #?????#"S """" #? | | ???????????????????# k #?????#""" """" #? | | ???????????????????# #?????# "" """" ?? | | ???????????????????# w #?????# ?? | | ???????????????????# #?????###########? | | ???????????????????# k%= t##############???? | | ???????????????????# *% % %!# ! #???? | | ???????????????????# =@== =% #% """ #???? | | ???????????????????#####h#g####+#= """ "T" #???? | | ????????????????????? # !%%[ !+%%""""" #???? | | ?????????????????????? # == =#= """"" [ #???? | | ???????????????????????# ##/##############???? | | ???????????????????? / # ????????????????? | | ?????????????????? # # ????????????????? | | ??????????????????? ??# # ????????????????? | | ?????????????????? ????# ?* ????????????????? | | ???????????????????????# ? ????????????????? | | ???????????????????????# # ????????????????? | | ???????????????????????# # ???????????????? | | ???????????????????????# + ???????????????? | | ???????????????????????# # ???????????????? | | ???????????????????????? ? ???????????????? | | ?????????????????????????????? ???????????????? | | ??????????????????????????????####???????????????? | | ?????????????????????????????????????????????????? | | ?????????????????????????????????????????????????? | | ?????????????????????????????????????????????????? | | ?????????????????????????????????????????????????? | | ?????????????????????????????????????????????????? | | ?????????????????????????????????????????????????? | | ?????????????????????????????????????????????????? | | ?????????????????????????????????????????????????? | +----------------------------------------------------+ Best States ------------- Heat Dissipation 88 Energy Generation 21 Energy Capacity 325 Matter Stores 300 Matter Capacity 300 Sight Range 20 Robot Scan Range 20 Terrain Scan Range 16 Terrain Scan Density 110 Jamming Range 8 Additional Mass Support 9 EM Shielding 2 Armor Coverage 1350 Resistance: KI 30 Resistance: EM 90 Propulsion Shielding 66 Weapon Cycling 15 Evasion (%) 42 Targeting Accuracy 10 Recoil Reduction 3 Kinecelleration 30 Salvage Targeting 3 Item Schematics ----------------- Hcp. Matter Pod | -8/Materials | Scanalyzed Hcp. Storage Unit | -8/Materials | Scanalyzed Med. Reactive Plating | -8/Materials | Scanalyzed Hacking Suite | -7/Factory | Scanalyzed Remote Datajack | -7/Factory | Scanalyzed Robot Schematics ------------------ None Fabricated ------------ Hcp. Storage Unit | x1 | -7/Factory Alien Tech Used ----------------- None Achievements -------------- None Challenges ------------ None Game ------ Seed ArmageddonGodKinecellerator Manual? 0 Play Time 01:35:53 Cumulative 30.7 hours Start 2020.10.20 @ 12:07:20 End 2020.10.20 @ 19:10:35 Sessions 5 Manual Loads 0 Difficulty Rogue Special Mode None Game No. 24 Rogue 24 Adventurer 0 Explorer 0 Win Type - Total 0 Types 0/0/0/0/0/0/0/0/0 Lore% 38 Gallery% 38 Achievement% 48 Wizard Run 0 Options --------- ASCII 0 Keyboard 1 Movement Numpad Keybinds 0 Fullscreen 1 Font 12/Terminus Map View 83x54 Tactical HUD 1 Map Filters NONE Filters NONE Steam 1 RUN: 1a684f8b-3c01-451a-8561-476d838bf006